bitfinex/quotes_SOLUSD_20241010
["timestamp","ask_amount","ask_price","bid_price","bid_amount"]
[1728600052227,0.860166,138.63,138.57,15.52406248]
[1728600052931,0.860166,138.63,138.57,14.08114472]
[1728600053511,0.860166,138.63,138.58,1.44291691]
[1728600053815,0.860166,138.63,138.57,14.08114472]
[1728600055525,0.860166,138.63,138.58,14.08114472]
[1728600057809,0.860166,138.63,138.59,15.52387069]
[1728600058008,0.860166,138.63,138.57,39.944384]
[1728600058009,0.12549,138.62,138.57,16.1675]
[1728600058332,7.34049,138.6,138.53,16.1675]
[1728600058631,0.12549,138.58,138.52,30.0]
[1728600058841,7.46738,138.58,138.52,30.0]
[1728600059351,7.34189,138.58,138.52,30.0]
[1728600060436,7.34189,138.58,138.5,30.24864472]
[1728600063438,0.12549,138.59,138.52,14.08114472]
[1728600063643,0.25098,138.59,138.52,14.08114472]
[1728600063944,15.7985,138.6,138.52,14.08114472]
[1728600064111,15.7985,138.6,138.53,15.52456448]
[1728600064531,15.7985,138.6,138.53,14.08114472]
[1728600065247,15.7985,138.6,138.52,14.08114472]
[1728600065409,0.12549,138.59,138.52,14.08114472]
[1728600066012,0.12549,138.59,138.53,1.44340919]
[1728600066536,0.12549,138.59,138.51,23.776884]
[1728600066716,0.12549,138.59,138.52,14.08114472]
[1728600067037,0.12549,138.59,138.51,37.85802872]
[1728600067633,0.12549,138.59,138.52,14.08114472]
[1728600069219,0.12549,138.59,138.51,23.776884]
[1728600069416,7.34119,138.59,138.5,30.24864472]
[1728600069633,0.12549,138.58,138.5,30.24864472]
[1728600070353,0.12549,138.58,138.51,14.08114472]
[1728600070833,0.12549,138.59,138.52,14.08114472]
[1728600071737,0.12549,138.59,138.53,14.08114472]
[1728600071949,7.214,138.62,138.54,15.52456125]
[1728600072235,7.214,138.62,138.54,14.08114472]
[1728600072439,7.214,138.62,138.53,14.08114472]
[1728600073253,0.12549,138.6,138.53,14.08114472]
[1728600073949,0.12549,138.61,138.53,14.08114472]
[1728600074133,0.12549,138.61,138.54,14.08114472]
[1728600074321,0.25098,138.62,138.55,15.52438717]
[1728600074851,0.25098,138.62,138.54,1.44339149]
[1728600074852,31.241964,138.62,138.54,1.44339149]
[1728600075028,31.241964,138.62,138.54,15.52453621]
[1728600078545,31.241964,138.62,138.54,14.08114472]
[1728600082845,31.241964,138.62,138.5,23.69162542]
[1728600082846,24.027864,138.62,138.5,23.69162542]
[1728600083062,0.25098,138.59,138.51,14.08114472]
[1728600083346,7.46658,138.59,138.51,14.08114472]
[1728600083727,0.25098,138.59,138.5,44.00767014]
[1728600084146,7.46678,138.59,138.5,44.00767014]
[1728600084335,23.30498,138.59,138.5,44.00767014]
[1728600085127,16.08918,138.59,138.5,44.00767014]
[1728600085328,16.08918,138.59,138.52,14.08114472]
[1728600086249,0.25098,138.59,138.53,14.08114472]
[1728600086427,0.12549,138.59,138.53,14.08114472]
[1728600086632,0.12549,138.59,138.54,14.08114472]
[1728600091354,0.12549,138.59,138.55,14.08114472]
[1728600091555,16.698366,138.63,138.55,14.08114472]
[1728600092364,0.860166,138.63,138.57,14.08114472]
[1728600093534,0.860166,138.63,138.57,44.08114472]
[1728600093953,0.12549,138.62,138.57,44.08114472]
[1728600094762,0.12549,138.62,138.58,14.08114472]
[1728600094944,0.12549,138.62,138.58,44.08114472]
[1728600095859,0.860166,138.63,138.58,44.08114472]
[1728600096235,0.25098,138.62,138.58,30.0]
[1728600097229,0.12549,138.62,138.58,30.0]
[1728600097434,0.860166,138.63,138.58,30.0]
[1728600097435,0.860166,138.63,138.58,44.08114472]
[1728600098235,0.860166,138.63,138.59,14.08114472]
[1728600098452,0.860166,138.63,138.59,44.08114472]
[1728600101671,0.860166,138.63,138.6,15.52397333]
[1728600101964,0.860166,138.63,138.6,45.52385096]
[1728600102261,0.860166,138.63,138.6,44.08114472]
[1728600104439,0.860166,138.63,138.6,30.0]
[1728600105868,0.860166,138.63,138.6,31.44270508]
[1728600106262,0.860166,138.63,138.6,30.0]
[1728600106759,0.860166,138.63,138.6,45.5098]
[1728600110657,0.860166,138.63,138.6,59.59094472]
[1728600116471,0.860166,138.63,138.6,59.59094472]
[1728600119251,0.860166,138.63,138.6,45.5098]
[1728600119451,0.860166,138.63,138.6,30.0]
[1728600121766,0.25098,138.62,138.6,30.0]
[1728600121958,31.241964,138.62,138.6,30.0]
[1728600122165,31.241964,138.62,138.52,30.58674472]
[1728600122368,7.2145,138.61,138.52,30.58674472]
[1728600122553,0.25098,138.6,138.52,16.5056]
[1728600123079,0.25098,138.6,138.53,30.0]
[1728600123251,0.25098,138.61,138.54,14.08114472]
[1728600129678,0.25098,138.61,138.55,30.0]
[1728600130192,0.25098,138.61,138.54,14.08114472]
[1728600130481,0.25098,138.61,138.53,14.08114472]
[1728600132768,0.25098,138.62,138.54,14.08114472]
[1728600133271,0.25098,138.62,138.55,30.0]
[1728600135353,0.25098,138.62,138.55,31.44323131]
[1728600135681,0.25098,138.62,138.55,44.08114472]
[1728600135879,0.25098,138.62,138.56,14.08114472]
[1728600136098,0.25098,138.62,138.57,30.0]
[1728600139959,0.25098,138.62,138.54,14.08114472]
[1728600140184,0.25098,138.62,138.55,30.0]
[1728600142177,0.12549,138.62,138.55,44.08114472]
[1728600142386,0.12549,138.62,138.57,14.08114472]
[1728600142563,0.12549,138.62,138.58,1.44299426]
[1728600142886,0.12549,138.62,138.58,15.52413898]
[1728600143390,0.860166,138.63,138.58,15.52413898]
[1728600143563,0.860166,138.63,138.59,14.08114472]
[1728600143760,0.860166,138.63,138.6,1.44278361]
[1728600144593,0.860166,138.63,138.6,31.44278361]
[1728600144888,0.860166,138.63,138.6,44.08114472]
[1728600145275,0.860166,138.63,138.6,30.0]
[1728600145988,0.860166,138.63,138.59,14.08114472]
[1728600148979,0.860166,138.63,138.6,30.0]
[1728600150195,0.860166,138.63,138.59,14.08114472]
[1728600152481,0.860166,138.63,138.6,14.08114472]
[1728600153172,0.860166,138.63,138.6,44.08114472]
[1728600154100,0.860166,138.63,138.61,1.44264101]
[1728600154277,0.860166,138.63,138.61,31.44264101]
[1728600155703,0.860166,138.63,138.61,30.0]
[1728600157002,0.860166,138.63,138.61,31.44265003]
[1728600157980,0.860166,138.63,138.61,30.0]
[1728600159106,0.860166,138.63,138.61,31.4426387]
[1728600162505,0.860166,138.63,138.61,30.0]
[1728600162803,0.860166,138.63,138.61,31.44263593]
[1728600163811,0.860166,138.63,138.61,30.0]
[1728600164190,0.860166,138.63,138.59,14.08114472]
[1728600164398,0.860166,138.63,138.6,30.0]
[1728600166105,0.860166,138.63,138.59,14.08114472]
[1728600170209,0.860166,138.63,138.6,30.0]
[1728600170596,0.860166,138.63,138.59,14.08114472]
[1728600171511,0.860166,138.63,138.6,14.08114472]
[1728600172205,0.860166,138.63,138.61,15.52378657]
[1728600172390,0.860166,138.63,138.61,1.44264185]
[1728600172591,0.860166,138.63,138.61,1.44262088]
[1728600173613,0.860166,138.63,138.61,31.44262088]
[1728600174500,0.860166,138.63,138.61,30.0]
[1728600182723,0.860166,138.63,138.62,14.08114472]
[1728600183019,0.860166,138.63,138.62,44.08114472]
[1728600183606,0.860166,138.63,138.62,30.0]
[1728600187219,0.860166,138.63,138.61,14.08114472]
[1728600187425,0.860166,138.63,138.62,14.08114472]
[1728600189023,0.860166,138.63,138.62,39.30041008]
[1728600190310,0.860166,138.63,138.62,69.30041008]
[1728600191531,0.860166,138.63,138.62,69.42590008]
[1728600193034,0.860166,138.63,138.62,69.55116959]
[1728600193208,16.4048,138.73,138.63,24.027864]
[1728600193409,16.4048,138.73,138.67,14.08114472]
[1728600193721,16.4048,138.73,138.65,14.08114472]
[1728600194428,0.12549,138.72,138.66,30.0]
[1728600196119,0.12549,138.72,138.67,14.08114472]
[1728600196320,0.12549,138.72,138.67,44.08114472]
[1728600196517,16.4048,138.73,138.68,1.44195989]
[1728600196729,16.4048,138.73,138.68,14.08114472]
[1728600197028,6.6432,138.74,138.67,44.08114472]
[1728600197231,6.6432,138.74,138.68,14.08114472]
[1728600197433,6.6432,138.74,138.68,44.08114472]
[1728600201618,0.12549,138.73,138.68,30.0]
[1728600202532,0.25098,138.73,138.68,30.0]
[1728600203115,0.25098,138.73,138.65,29.79634472]
[1728600203324,0.25098,138.73,138.66,30.0]
[1728600204415,24.027864,138.73,138.66,30.0]
[1728600204915,0.25098,138.7,138.66,30.0]
[1728600205139,24.027864,138.7,138.61,15.9628]
[1728600205314,24.027864,138.7,138.62,30.0]
[1728600208039,24.027864,138.7,138.61,23.48523624]
[1728600209047,24.027864,138.7,138.61,37.56638096]
[1728600210851,24.027864,138.7,138.62,14.08114472]
[1728600211038,24.027864,138.7,138.63,30.0]
[1728600212326,0.25098,138.7,138.64,14.08114472]
[1728600212651,0.25098,138.7,138.63,30.0]
[1728600212652,24.027864,138.7,138.63,30.0]
[1728600214947,6.5468,138.71,138.59,14.08114472]
[1728600214948,24.027864,138.68,138.59,14.08114472]
[1728600215248,24.027864,138.68,138.6,44.08114472]
[1728600217453,24.027864,138.69,138.6,44.08114472]
[1728600222461,24.027864,138.69,138.61,14.08114472]
[1728600223063,6.5468,138.71,138.63,14.08114472]
[1728600223238,6.5468,138.71,138.64,45.52344841]
[1728600224476,0.25098,138.7,138.64,45.52344841]
[1728600224666,0.25098,138.7,138.64,15.52344841]
[1728600225539,0.25098,138.71,138.65,14.08114472]
[1728600225748,0.25098,138.71,138.66,1.44219047]
[1728600225951,0.25098,138.71,138.65,14.08114472]
[1728600226868,0.25098,138.71,138.64,14.08114472]
[1728600227854,0.25098,138.71,138.65,15.52337333]
[1728600228150,0.25098,138.71,138.66,1.44222836]
[1728600228348,0.12549,138.71,138.66,15.52337308]
[1728600229453,0.12549,138.71,138.67,14.08114472]
[1728600230044,0.12549,138.71,138.67,44.08114472]
[1728600230556,0.12549,138.71,138.69,14.08114472]
[1728600231753,0.12549,138.71,138.68,14.08114472]
[1728600233450,0.12549,138.71,138.69,14.08114472]
[1728600235951,0.12549,138.71,138.66,16.4999]
[1728600236144,0.12549,138.71,138.68,14.08114472]
[1728600236474,0.12549,138.74,138.69,15.52316315]
[1728600236981,0.25098,138.74,138.69,15.52316315]
[1728600237675,0.25098,138.74,138.7,14.08114472]
[1728600238253,0.12549,138.74,138.7,14.08114472]
[1728600239274,16.3344,138.75,138.7,14.08114472]
[1728600240463,0.12549,138.74,138.7,14.08114472]
[1728600240652,0.12549,138.74,138.71,14.08114472]
[1728600241775,0.860166,138.77,138.72,14.08114472]
[1728600241954,0.25098,138.76,138.72,14.08114472]
[1728600244486,0.25098,138.76,138.71,44.08114472]
[1728600245184,0.25098,138.76,138.72,14.08114472]
[1728600247082,0.12549,138.76,138.72,14.08114472]
[1728600249163,0.12549,138.76,138.72,44.08114472]
[1728600252894,0.25098,138.76,138.72,30.0]
[1728600256282,0.25098,138.76,138.71,14.08114472]
[1728600257577,0.12549,138.76,138.71,14.08114472]
[1728600258091,0.860166,138.77,138.73,14.08114472]
[1728600259876,0.860166,138.77,138.73,44.08114472]
[1728600263174,0.860166,138.77,138.75,14.08114472]
[1728600263373,0.860166,138.77,138.74,14.08114472]
[1728600264800,0.860166,138.77,138.73,30.0]
[1728600265872,0.25098,138.76,138.7,15.6819]
[1728600266092,0.25098,138.76,138.7,29.76304472]
[1728600267300,0.12549,138.76,138.71,14.08114472]
[1728600267597,0.12549,138.76,138.72,14.08114472]
[1728600270601,0.12549,138.76,138.73,1.44149193]
[1728600270798,0.860166,138.77,138.73,15.52263665]
[1728600271301,0.860166,138.77,138.74,14.08114472]
[1728600274196,0.860166,138.77,138.71,1.44137951]
[1728600274197,0.860166,138.77,138.75,14.08114472]
[1728600274426,0.860166,138.77,138.76,15.5225032]
[1728600274786,0.860166,138.77,138.76,14.08114472]
[1728600275387,0.860166,138.77,138.76,44.08114472]
[1728600275589,0.860166,138.77,138.76,30.0]
[1728600276602,0.860166,138.77,138.75,30.0]
[1728600276890,0.860166,138.77,138.75,44.08114472]
[1728600278291,0.860166,138.77,138.75,30.0]
[1728600278792,0.860166,138.77,138.73,20.63484472]
[1728600279702,0.860166,138.77,138.73,14.08114472]
[1728600281491,24.027864,138.76,138.7,7.52424124]
[1728600282014,24.027864,138.76,138.68,14.08114472]
[1728600282408,24.027864,138.76,138.7,14.08114472]
[1728600284013,24.027864,138.76,138.69,14.08114472]
[1728600287715,24.027864,138.76,138.7,15.52298756]
[1728600288020,0.25098,138.76,138.71,14.08114472]
[1728600288788,0.25098,138.76,138.67,23.776884]
[1728600288996,0.25098,138.76,138.69,14.08114472]
[1728600291020,0.25098,138.76,138.7,30.0]
[1728600292223,0.25098,138.76,138.69,14.08114472]
[1728600294223,0.25098,138.76,138.67,31.30287288]
[1728600294410,24.027864,138.76,138.67,7.52598888]
[1728600294726,24.027864,138.76,138.68,14.08114472]
[1728600295402,24.027864,138.76,138.69,30.0]
[1728600296926,24.027864,138.76,138.69,44.08114472]
[1728600298921,0.25098,138.76,138.7,14.08114472]
[1728600300320,0.25098,138.76,138.69,44.08114472]
[1728600303411,24.027864,138.76,138.69,30.0]
[1728600303814,0.25098,138.76,138.7,15.52298552]
[1728600304226,0.860166,138.77,138.7,14.08114472]
[1728600304536,0.860166,138.77,138.71,14.08114472]
[1728600305420,0.12549,138.76,138.71,14.08114472]
[1728600306038,0.12549,138.76,138.72,1.44154045]
[1728600306944,0.12549,138.76,138.71,14.08114472]
[1728600309424,0.12549,138.76,138.72,15.52268438]
[1728600309847,0.12549,138.76,138.73,30.0]
[1728600312432,0.860166,138.77,138.73,30.0]
[1728600312624,0.860166,138.77,138.72,15.52268438]
[1728600313120,0.860166,138.77,138.72,14.08114472]
[1728600313339,0.860166,138.77,138.7,22.8985]
[1728600313340,0.860166,138.77,138.71,14.08114472]
[1728600313645,0.860166,138.77,138.72,30.0]
[1728600314120,0.860166,138.77,138.71,14.08114472]
[1728600315621,0.860166,138.77,138.72,30.0]
[1728600317143,0.860166,138.77,138.72,44.08114472]
[1728600318931,0.860166,138.77,138.73,14.08114472]
[1728600319135,0.860166,138.77,138.74,30.0]
[1728600322127,0.860166,138.77,138.72,14.08114472]
[1728600322324,0.860166,138.77,138.7,22.8985]
[1728600322530,0.860166,138.77,138.71,44.08114472]
[1728600323428,0.860166,138.77,138.72,14.08114472]
[1728600324522,0.860166,138.77,138.73,30.0]
[1728600336152,0.25098,138.76,138.73,30.0]
[1728600336652,0.25098,138.76,138.7,7.51961822]
[1728600337364,0.12549,138.76,138.71,15.0972]
[1728600337538,0.860166,138.77,138.74,14.08114472]
[1728600337737,0.860166,138.77,138.75,1.44124761]
[1728600338055,0.860166,138.77,138.72,30.0]
[1728600338259,0.860166,138.77,138.73,1.44144064]
[1728600339453,0.860166,138.77,138.72,44.08114472]
[1728600340361,0.860166,138.77,138.72,30.0]
[1728600340362,0.12549,138.76,138.72,30.0]
[1728600340659,0.860166,138.77,138.72,44.08114472]
[1728600341263,0.860166,138.77,138.73,14.08114472]
[1728600342655,0.25098,138.76,138.72,30.0]
[1728600342957,0.25098,138.76,138.7,7.51907757]
[1728600343864,0.12549,138.76,138.7,8.96076349]
[1728600344046,0.12549,138.76,138.71,14.08114472]
[1728600344246,0.12549,138.76,138.72,1.44154889]
[1728600345765,0.12549,138.76,138.71,14.08114472]
[1728600345952,0.12549,138.76,138.72,1.44152984]
[1728600346551,0.12549,138.76,138.72,15.52267456]
[1728600346739,0.12549,138.76,138.72,14.08114472]
[1728600347363,0.12549,138.76,138.71,14.08114472]
[1728600347542,0.12549,138.76,138.7,36.82602229]
[1728600349160,0.25098,138.76,138.71,1.44163477]
[1728600350369,0.12549,138.76,138.7,36.82602229]
[1728600350566,0.12549,138.76,138.71,30.0]
[1728600350869,0.12549,138.76,138.72,1.44154743]
[1728600351674,0.12549,138.76,138.71,30.0]
[1728600352155,0.12549,138.76,138.7,36.82602229]
[1728600354174,0.12549,138.76,138.71,1.44158187]
[1728600354359,0.12549,138.76,138.71,15.52272659]
[1728600354549,0.12549,138.76,138.71,14.08114472]
[1728600354750,0.12549,138.76,138.72,1.441557]
[1728600357861,0.12549,138.76,138.71,14.08114472]
[1728600358070,0.12549,138.76,138.72,1.44153636]
[1728600360675,0.860166,138.77,138.72,15.52268108]
[1728600361270,0.860166,138.77,138.74,14.08114472]
[1728600363650,0.860166,138.77,138.73,14.08114472]
[1728600364171,0.860166,138.77,138.72,20.28324472]
[1728600364376,0.860166,138.77,138.73,30.0]
[1728600365266,0.860166,138.77,138.72,20.28324472]
[1728600365471,0.860166,138.77,138.74,14.08114472]
[1728600369677,0.860166,138.77,138.72,20.28324472]
[1728600371177,0.860166,138.77,138.73,30.0]
[1728600379686,0.860166,138.77,138.73,44.08114472]
[1728600385192,0.860166,138.77,138.74,14.08114472]
[1728600385399,0.860166,138.77,138.76,14.08114472]
[1728600385685,0.860166,138.77,138.75,1.44118423]
[1728600385686,0.860166,138.77,138.75,15.52233313]
[1728600388368,0.860166,138.77,138.76,15.52232559]
[1728600388874,0.860166,138.77,138.76,14.08114472]
[1728600389784,0.860166,138.77,138.76,15.52205717]
[1728600390170,0.860166,138.77,138.76,44.08114472]
[1728600391263,0.860166,138.77,138.76,75.90398832]
[1728600394394,0.12549,138.85,138.77,23.776884]
[1728600394605,0.12549,138.85,138.82,14.08114472]
[1728600395185,6.1078,138.86,138.82,14.08114472]
[1728600395377,15.4441,138.88,138.82,14.08114472]
[1728600395774,23.902374,138.87,138.82,14.08114472]
[1728600395984,0.12549,138.87,138.82,14.08114472]
[1728600396391,0.25098,138.87,138.82,14.08114472]
[1728600396574,15.4441,138.88,138.84,14.08114472]
[1728600396880,0.860166,138.9,138.85,15.52149674]
[1728600397089,0.860166,138.9,138.85,14.08114472]
[1728600399496,0.12549,138.89,138.85,14.08114472]
[1728600400979,24.027864,138.89,138.8,6.3692]
[1728600401177,24.027864,138.89,138.83,14.08114472]
[1728600404910,24.027864,138.89,138.81,30.0]
[1728600405194,24.027864,138.89,138.81,14.08114472]
[1728600405987,24.027864,138.89,138.82,14.08114472]
[1728600406985,24.027864,138.89,138.83,14.08114472]
[1728600407188,24.027864,138.89,138.84,14.08114472]
[1728600407399,0.25098,138.89,138.85,14.08114472]
[1728600408077,0.860166,138.9,138.86,14.08114472]
[1728600409087,0.860166,138.9,138.87,14.08114472]
[1728600412486,0.860166,138.9,138.85,14.08114472]
[1728600412687,0.12549,138.89,138.84,14.08114472]
[1728600412894,0.25098,138.89,138.83,14.08114472]
[1728600413106,0.25098,138.89,138.84,30.0]
[1728600413398,0.12549,138.89,138.85,14.08114472]
[1728600415508,0.25098,138.89,138.82,15.0947]
[1728600415804,0.25098,138.89,138.84,14.08114472]
[1728600421123,24.027864,138.89,138.83,30.0]
[1728600421296,40.422264,138.89,138.8,20.45034472]
[1728600421617,24.027864,138.87,138.79,14.08114472]
[1728600424117,24.027864,138.87,138.78,30.19374472]
[1728600427321,24.027864,138.87,138.79,14.08114472]
[1728600429721,24.027864,138.87,138.8,14.08114472]
[1728600433329,24.027864,138.87,138.79,14.08114472]
[1728600433546,24.027864,138.87,138.78,16.1126]
[1728600433822,24.027864,138.87,138.78,30.19374472]
[1728600435007,24.027864,138.87,138.79,14.08114472]
[1728600436521,24.027864,138.87,138.8,14.08114472]
[1728600436718,24.027864,138.87,138.81,14.08114472]
[1728600439502,0.25098,138.87,138.81,14.08114472]
[1728600443009,0.25098,138.87,138.8,14.08114472]
[1728600445335,15.9087,138.85,138.77,7.50572646]
[1728600445546,24.027864,138.84,138.75,14.08114472]
[1728600446221,7.2034,138.83,138.73,28.62662594]
[1728600446532,24.027864,138.82,138.75,30.0]
[1728600447023,24.027864,138.82,138.74,26.72287082]
[1728600448324,24.027864,138.82,138.74,12.6417261]
[1728600448525,24.027864,138.8,138.73,22.60962594]
[1728600448809,24.027864,138.8,138.73,15.0955]
[1728600454931,24.027864,138.8,138.73,29.17664472]
[1728600455133,0.25098,138.8,138.74,15.52260638]
[1728600456442,0.25098,138.8,138.74,14.08114472]
[1728600458543,0.25098,138.8,138.73,15.0955]
[1728600459242,0.25098,138.8,138.73,29.17664472]
[1728600460446,0.25098,138.8,138.7,29.13875462]
[1728600460741,0.25098,138.8,138.73,14.08114472]
[1728600463446,0.25098,138.8,138.74,14.08114472]
[1728600463939,0.25098,138.8,138.73,14.08114472]
[1728600464143,0.25098,138.8,138.74,14.08114472]
[1728600466236,0.25098,138.8,138.73,14.08114472]
[1728600468051,0.25098,138.8,138.71,30.0]
[1728600468239,0.25098,138.8,138.73,14.08114472]
[1728600471855,0.25098,138.8,138.71,30.0]
[1728600472037,0.25098,138.8,138.72,14.08114472]
[1728600472532,7.45558,138.8,138.7,29.13875462]
[1728600472731,0.25098,138.78,138.71,14.08114472]
[1728600474759,0.25098,138.78,138.72,14.08114472]
[1728600489562,0.25098,138.78,138.73,14.08114472]
[1728600491345,0.25098,138.78,138.72,14.08114472]
[1728600491549,0.25098,138.78,138.7,29.13875462]
[1728600491764,0.25098,138.78,138.71,44.08114472]
[1728600492269,0.25098,138.78,138.71,14.08114472]
[1728600495072,0.25098,138.78,138.72,14.08114472]
[1728600498974,0.25098,138.78,138.73,1.44157528]
[1728600499958,0.25098,138.78,138.72,15.52263565]
[1728600500269,0.25098,138.78,138.72,14.08114472]
[1728600504716,0.25098,138.78,138.7,29.13875462]
[1728600504884,0.25098,138.78,138.72,14.08114472]
[1728600505550,0.25098,138.78,138.73,14.08114472]
[1728600508976,0.25098,138.78,138.74,14.08114472]
[1728600511764,6.2832,138.82,138.75,15.52249863]
[1728600511970,7.2031,138.83,138.76,14.08114472]
[1728600512167,7.2031,138.83,138.75,14.08114472]
[1728600513180,0.25098,138.8,138.75,14.08114472]
[1728600524488,0.25098,138.8,138.71,7.51561661]
[1728600524696,0.25098,138.8,138.71,37.17486133]
[1728600524981,0.25098,138.8,138.72,14.08114472]
[1728600525366,7.45588,138.8,138.72,14.08114472]
[1728600525570,0.25098,138.78,138.72,14.08114472]
[1728600526887,0.25098,138.78,138.73,15.52258926]
[1728600537095,0.25098,138.78,138.74,14.08114472]
[1728600540996,0.25098,138.78,138.73,14.08114472]
[1728600542300,0.25098,138.78,138.74,14.08114472]
[1728600545001,0.25098,138.78,138.73,14.08114472]
[1728600549904,0.12549,138.78,138.73,14.08114472]
[1728600550211,0.12549,138.78,138.74,14.08114472]
[1728600553209,0.12549,138.78,138.73,14.08114472]
[1728600555504,0.12549,138.78,138.71,23.09327575]
[1728600555803,0.12549,138.78,138.73,14.08114472]
[1728600556212,0.12549,138.78,138.71,23.09327575]
[1728600556512,0.12549,138.78,138.73,14.08114472]
[1728600559112,0.12549,138.78,138.71,23.09327575]
[1728600559320,7.45618,138.79,138.71,23.09327575]
[1728600559488,0.25098,138.77,138.71,23.09327575]
[1728600560396,24.027864,138.78,138.71,23.09327575]
[1728600560602,24.027864,138.78,138.71,15.5781]
[1728600563404,0.25098,138.78,138.71,29.65924472]
[1728600564404,0.12549,138.78,138.73,14.08114472]
[1728600565713,0.25098,138.78,138.73,14.08114472]
[1728600566911,0.25098,138.78,138.72,14.08114472]
[1728600569518,0.25098,138.78,138.71,29.65924472]
[1728600570320,0.25098,138.78,138.71,31.1008046]
[1728600570503,0.25098,138.78,138.71,29.65924472]
[1728600572317,0.25098,138.78,138.72,14.08114472]
[1728600572820,0.25098,138.78,138.73,14.08114472]
[1728600572993,0.25098,138.78,138.72,1.4414381]
[1728600573198,0.25098,138.78,138.74,14.08114472]
[1728600580116,0.25098,138.78,138.73,14.08114472]
[1728600583524,0.25098,138.78,138.72,14.08114472]
[1728600583818,0.25098,138.78,138.69,21.59742535]
[1728600584021,0.25098,138.76,138.7,30.0]
[1728600584605,0.25098,138.76,138.69,14.08114472]
[1728600590517,0.25098,138.76,138.7,14.08114472]
[1728600592935,0.25098,138.76,138.72,14.08114472]
[1728600593231,22.0441,138.81,138.73,14.08114472]
[1728600593232,7.2047,138.8,138.73,14.08114472]
[1728600594422,24.027864,138.79,138.73,14.08114472]
[1728600600341,0.25098,138.79,138.73,14.08114472]
[1728600600634,7.2031,138.83,138.76,14.08114472]
[1728600600833,22.7758,138.84,138.78,14.08114472]
[1728600601036,16.6346,138.84,138.78,14.08114472]
[1728600602220,7.202,138.85,138.78,14.08114472]
[1728600603020,24.027864,138.84,138.78,14.08114472]
[1728600603839,19.40795885,138.87,138.78,14.08114472]
[1728600604144,22.8402,138.87,138.79,14.08114472]
[1728600604340,31.32598384,138.87,138.79,14.08114472]
[1728600605240,24.027864,138.86,138.79,14.08114472]
[1728600605751,24.027864,138.86,138.8,14.08114472]
[1728600605926,3.76885885,138.89,138.82,14.08114472]
[1728600606253,0.860166,138.9,138.83,15.52166571]
[1728600607140,0.860166,138.9,138.83,14.08114472]
[1728600608424,24.027864,138.89,138.83,14.08114472]
[1728600610131,24.027864,138.89,138.82,15.52158604]
[1728600611530,24.027864,138.89,138.82,14.08114472]
[1728600613047,24.027864,138.89,138.81,6.3462]
[1728600613048,31.227864,138.89,138.81,6.3462]
[1728600613248,24.027864,138.87,138.8,15.4542]
[1728600614548,0.25098,138.87,138.8,29.53534472]
[1728600615452,0.25098,138.87,138.8,15.4542]
[1728600622355,0.25098,138.87,138.8,29.53534472]
[1728600623861,7.45208,138.87,138.8,15.4542]
[1728600624047,0.25098,138.85,138.8,15.4542]
[1728600625741,0.25098,138.85,138.8,30.97621306]
[1728600626335,0.25098,138.85,138.8,29.53534472]
[1728600631067,0.25098,138.85,138.8,15.4542]
[1728600631248,0.25098,138.85,138.77,6.6248]
[1728600631577,0.25098,138.83,138.78,30.0]
[1728600632469,0.25098,138.83,138.78,44.08114472]
[1728600633643,0.25098,138.83,138.78,14.08114472]
[1728600635054,0.25098,138.83,138.77,20.70594472]
[1728600645067,0.25098,138.83,138.77,6.6248]
[1728600648275,0.25098,138.83,138.77,20.70594472]
[1728600649061,0.25098,138.83,138.77,6.6248]
[1728600649570,0.25098,138.83,138.76,15.8555]
[1728600649957,23.776884,138.82,138.76,15.8555]
[1728600650275,0.25098,138.81,138.76,15.8555]
[1728600658600,23.776884,138.8,138.74,7.51075128]
[1728600658766,0.12549,138.79,138.72,15.5201]
[1728600658970,0.12549,138.77,138.72,15.5201]
[1728600659290,0.25098,138.77,138.72,15.5201]
[1728600661076,0.25098,138.77,138.73,15.52274327]
[1728600661297,0.25098,138.77,138.73,14.08114472]
[1728600664390,0.12549,138.77,138.74,1.44144319]
[1728600665289,0.12549,138.77,138.73,14.08114472]